bitfinex/quotes_ETHUSD_20240916
["timestamp","ask_amount","ask_price","bid_price","bid_amount"]
[1726486429750,0.005,2311.2,2311.1,0.874069]
[1726486429966,0.005,2311.2,2311.1,5.201009]
[1726486430133,0.005,2311.2,2311.1,5.28753643]
[1726486431030,0.005,2311.2,2311.1,5.28753644]
[1726486431602,0.005,2311.2,2311.1,5.201009]
[1726486431800,0.005,2311.2,2311.1,0.874069]
[1726486437168,0.005,2311.2,2311.1,5.201009]
[1726486437389,0.005,2311.2,2311.1,5.28753665]
[1726486437590,0.005,2311.2,2311.1,0.96059665]
[1726486437991,0.005,2311.2,2311.1,5.28753665]
[1726486438674,0.005,2311.2,2311.1,9.61447665]
[1726486440840,0.005,2311.2,2311.1,11.86857665]
[1726486441000,0.49624666,2311.6,2311.3,4.32649]
[1726486441199,0.49624666,2311.6,2311.2,6.02158773]
[1726486441395,0.49624666,2311.6,2311.3,4.41307785]
[1726486441812,0.49624666,2311.6,2311.4,6.59285]
[1726486442019,0.49624666,2311.6,2311.5,4.32619]
[1726486442246,0.0433174,2311.6,2311.5,4.4127017]
[1726486442409,0.0433174,2311.6,2311.5,5.93475904]
[1726486445172,0.0433174,2311.6,2311.5,12.68224904]
[1726486445711,0.0433174,2311.6,2311.5,21.33462904]
[1726486445932,0.0433174,2311.6,2311.5,18.3390173]
[1726486446139,0.005,2311.7,2311.5,20.33456634]
[1726486446327,0.005,2311.8,2311.7,8.65164]
[1726486446530,0.005,2311.8,2311.7,18.45496]
[1726486447770,0.005,2311.8,2311.7,19.79772875]
[1726486447976,0.005,2311.8,2311.7,23.09974889]
[1726486448173,0.005,2311.8,2311.7,23.09995629]
[1726486448487,0.005,2311.8,2311.7,21.75698014]
[1726486450758,0.0383174,2312.3,2312.2,8.64976]
[1726486451078,0.0383174,2312.3,2312.2,16.04375767]
[1726486451701,0.0383174,2312.3,2312.2,20.36863767]
[1726486451904,0.0383174,2312.3,2312.2,16.04375767]
[1726486452279,0.0383174,2312.3,2312.2,17.385638]
[1726486452600,0.0383174,2312.3,2312.2,16.04375767]
[1726486453103,0.0383174,2312.3,2312.2,17.38599021]
[1726486453866,0.0383174,2312.3,2312.2,21.71087021]
[1726486454066,0.0383174,2312.3,2312.2,23.72399241]
[1726486454270,0.0383174,2312.3,2312.2,32.50293219]
[1726486454585,0.0383174,2313.0,2312.2,32.50293219]
[1726486454586,0.0383174,2313.0,2312.9,4.32357]
[1726486455183,0.0383174,2313.0,2312.9,4.41002524]
[1726486455410,0.0383174,2313.0,2312.9,4.32357]
[1726486457378,0.6676,2312.9,2312.6,8.53883167]
[1726486457712,0.6676,2312.9,2312.6,4.32401]
[1726486457880,0.6676,2312.9,2312.6,8.53883167]
[1726486458077,0.0383174,2313.0,2312.6,8.53883167]
[1726486458298,0.0383174,2313.0,2312.8,4.21482167]
[1726486458620,0.0383174,2313.0,2312.8,8.53856167]
[1726486458996,0.0383174,2313.0,2312.7,0.85388317]
[1726486459303,0.6676,2313.1,2312.7,0.85388317]
[1726486459304,4.12600322,2313.1,2312.7,0.94034789]
[1726486459492,4.12600322,2313.1,2312.7,5.17781317]
[1726486459679,4.32304,2313.2,2312.7,5.26427786]
[1726486459905,4.32304,2313.2,2312.8,4.41018463]
[1726486460079,4.32304,2313.2,2312.8,4.41018033]
[1726486460279,0.45277444,2313.3,2312.9,4.32353]
[1726486460480,4.77560444,2313.3,2312.8,8.53854167]
[1726486460778,4.77560444,2313.3,2312.8,11.0626319]
[1726486460983,4.32302,2313.2,2312.8,11.0626319]
[1726486461281,4.77563444,2313.3,2312.8,12.68662941]
[1726486461485,4.32303,2313.2,2312.8,12.68662941]
[1726486461906,4.77563444,2313.3,2312.8,12.68662941]
[1726486461907,4.77562444,2313.3,2312.8,12.68662941]
[1726486462110,4.77562444,2313.3,2312.8,12.60016918]
[1726486462308,4.32304,2313.2,2312.8,4.3236]
[1726486462540,4.32304,2313.2,2312.6,10.95750167]
[1726486462744,4.32324,2313.1,2312.6,10.95750167]
[1726486462949,4.32324,2313.1,2312.6,15.28154167]
[1726486463145,4.32324,2313.1,2312.6,17.98213084]
[1726486466755,4.32342,2313.0,2312.6,13.65809084]
[1726486467467,4.32324,2313.1,2312.6,17.98212084]
[1726486467621,4.32324,2313.1,2312.6,17.98214084]
[1726486468165,4.32304,2313.2,2312.7,4.41032501]
[1726486468326,4.32304,2313.2,2312.7,6.20853909]
[1726486468528,4.32322,2313.1,2312.7,6.12207408]
[1726486469153,4.32322,2313.1,2312.7,6.20853909]
[1726486470395,4.32322,2313.1,2312.7,4.41032501]
[1726486472336,4.32322,2313.1,2312.7,4.32386]
[1726486473768,4.32322,2313.1,2312.7,4.41032396]
[1726486475075,4.32322,2313.1,2312.7,0.08646396]
[1726486477297,4.32341,2313.0,2312.7,0.08646396]
[1726486477459,4.32341,2313.0,2312.6,15.28155167]
[1726486477659,4.32341,2313.0,2312.6,17.54970684]
[1726486477858,4.32341,2313.0,2312.6,13.22565684]
[1726486478091,4.32341,2313.0,2312.6,17.54971684]
[1726486478288,8.64652,2313.1,2312.7,0.08646591]
[1726486479502,4.32322,2313.1,2312.7,4.41033591]
[1726486479702,4.32322,2313.1,2312.7,0.08646591]
[1726486480098,8.64655,2313.1,2312.7,0.08646591]
[1726486480517,4.32339,2313.0,2312.7,0.08646591]
[1726486481222,4.3236,2312.9,2312.6,6.63352167]
[1726486481378,0.45277444,2313.3,2312.6,6.63352167]
[1726486481379,4.32376,2312.8,2312.6,2.4187]
[1726486481800,4.3234,2313.0,2312.6,2.4187]
[1726486481801,4.32359,2312.9,2312.6,2.4187]
[1726486482118,4.32359,2312.9,2312.4,2.3873]
[1726486482119,4.32403,2312.7,2312.4,2.3873]
[1726486482287,4.32415,2312.6,2312.4,2.3873]
[1726486482488,4.32445,2312.5,2312.2,2.4747]
[1726486482676,4.32453,2312.4,2312.2,2.4747]
[1726486483389,5.188289,2312.9,2312.2,2.4747]
[1726486483584,4.32441,2312.5,2312.2,2.4747]
[1726486484113,4.3243,2312.6,2312.2,2.4747]
[1726486484114,4.3246,2312.4,2312.2,2.4747]
[1726486484314,4.3246,2312.4,2312.1,7.4]
[1726486484815,8.6492,2312.4,2312.1,7.4]
[1726486485111,4.3247,2312.3,2312.1,7.4]
[1726486485310,4.3246,2312.4,2312.1,7.4]
[1726486485513,4.3246,2312.4,2312.0,2.4882]
[1726486485675,4.3246,2312.4,2312.0,3.79289082]
[1726486486012,4.3246,2312.4,2312.0,8.00771249]
[1726486486210,4.3246,2312.4,2312.0,12.41944267]
[1726486486603,8.64855,2312.6,2312.0,16.74451267]
[1726486486919,4.32439,2312.5,2312.1,1.67445127]
[1726486487508,4.32439,2312.5,2312.1,5.99947127]
[1726486487914,4.32439,2312.5,2312.1,1.67445127]
[1726486490300,4.32439,2312.5,2312.0,11.02827167]
[1726486490975,4.32439,2312.5,2312.1,4.32504]
[1726486492576,4.32439,2312.5,2312.0,11.02827167]
[1726486492779,4.32439,2312.5,2312.1,1.34924192]
[1726486493015,4.32439,2312.5,2312.0,11.02819167]
[1726486493317,4.32451,2312.4,2312.1,1.34923769]
[1726486493615,4.32451,2312.4,2312.0,6.81337]
[1726486493985,4.32451,2312.4,2312.0,11.22504023]
[1726486494192,4.32427,2312.6,2312.1,1.21234285]
[1726486494193,4.32435,2312.5,2312.1,1.21234285]
[1726486496053,4.32435,2312.5,2312.1,5.53733285]
[1726486497644,4.32435,2312.5,2312.1,1.21234285]
[1726486498005,4.32435,2312.5,2312.1,5.53736285]
[1726486501563,0.45285716,2312.7,2312.5,4.32415]
[1726486501857,0.0383174,2313.7,2312.4,8.53926167]
[1726486501858,4.32311,2313.2,2312.8,4.32367]
[1726486502054,0.45278007,2313.1,2312.8,1.94249687]
[1726486502345,0.45278007,2313.1,2313.0,1.94249687]
[1726486502554,4.32243,2313.6,2313.1,4.32311]
[1726486502759,0.0383174,2313.7,2313.2,6.26547687]
[1726486503054,0.45277987,2313.5,2313.3,6.86604718]
[1726486503270,0.45277987,2313.5,2313.4,1.94249687]
[1726486503410,0.0383174,2313.7,2313.4,6.26503687]
[1726486503616,0.0383174,2313.7,2313.4,6.3514776]
[1726486503910,0.0383174,2313.7,2313.4,4.32254]
[1726486504351,0.0383174,2313.7,2313.5,0.08644228]
[1726486504577,0.0383174,2313.7,2313.6,10.90469055]
[1726486504843,0.0383174,2313.7,2313.6,15.22695055]
[1726486505754,0.0383174,2313.7,2313.6,10.90469055]
[1726486506052,0.0383174,2313.7,2313.6,2.3757]
[1726486506352,0.0383174,2313.7,2313.5,4.32231]
[1726486506516,0.0383174,2313.7,2313.5,1.48651941]
[1726486507210,0.0383174,2313.7,2313.5,5.80893941]
[1726486508155,0.0383174,2313.7,2313.6,0.08643005]
[1726486508949,0.0383174,2313.7,2313.6,4.40869005]
[1726486509178,0.0383174,2313.7,2313.6,5.85113505]
[1726486510049,0.0383174,2313.7,2313.6,1.52887505]
[1726486510557,0.0383174,2313.7,2313.6,1.442445]
[1726486510761,0.0383174,2313.7,2313.4,4.32246]
[1726486510966,0.0383174,2313.7,2313.1,6.48103055]
[1726486511127,4.32274,2313.4,2312.9,4.32346]
[1726486511321,4.32274,2313.4,2312.9,1.27340104]
[1726486511515,4.32311,2313.2,2312.9,1.27340104]
[1726486512151,4.32358,2312.9,2312.7,4.20673055]
[1726486512315,4.32358,2312.9,2312.4,7.48965829]
[1726486512316,4.32375,2312.9,2312.4,2.2669]
[1726486512518,4.32375,2312.9,2312.5,0.88537716]
[1726486512829,4.32375,2312.9,2312.5,5.09210771]
[1726486513516,4.32375,2312.9,2312.5,5.17858029]
[1726486513725,4.32375,2312.9,2312.6,1.60942903]
[1726486514968,4.32369,2312.9,2312.6,1.60942903]
[1726486515123,4.32369,2312.9,2312.4,2.2669]
[1726486515316,4.32377,2312.8,2312.4,2.2669]
[1726486515515,4.32369,2312.9,2312.4,2.2669]
[1726486515717,4.32386,2312.8,2312.4,2.2669]
[1726486515914,4.32398,2312.7,2312.4,1.51229505]
[1726486516149,4.32398,2312.7,2312.3,4.20673055]
[1726486516365,4.32422,2312.6,2312.2,2.4303]
[1726486517645,4.32422,2312.6,2312.2,4.69903005]
[1726486517854,4.32372,2312.9,2312.3,4.29321752]
[1726486518069,3.0,2313.0,2312.5,8.53093055]
[1726486518070,4.3234,2313.0,2312.5,8.53093055]
[1726486518276,4.32334,2313.1,2312.6,0.08646901]
[1726486518277,8.64665,2313.1,2312.6,0.08646901]
[1726486518579,4.3234,2313.0,2312.6,1.51382874]
[1726486519242,4.3236,2312.9,2312.6,1.42735973]
[1726486519467,4.3236,2312.9,2312.4,5.65618776]
[1726486519667,4.3236,2312.9,2312.5,1.41875683]
[1726486519981,4.32331,2313.1,2312.5,5.71195777]
[1726486520280,8.64667,2313.1,2312.6,4.32412]
[1726486520778,4.32341,2313.0,2312.7,2.3601]
[1726486521753,0.45273914,2313.2,2312.7,2.3601]
[1726486521977,4.3233,2313.1,2312.7,2.3601]
[1726486522183,0.45273914,2313.2,2312.7,6.68395]
[1726486522184,7.77577914,2313.2,2312.7,6.68395]
[1726486522386,4.77577914,2313.2,2312.7,7.96764087]
[1726486522677,4.32321,2313.1,2312.7,7.96764087]
[1726486522837,4.32321,2313.1,2312.8,1.32865597]
[1726486524173,0.45273914,2313.2,2312.8,5.73883501]
[1726486524387,0.45273914,2313.2,2312.8,4.41017904]
[1726486525480,4.32334,2313.1,2312.6,4.32403]
[1726486525690,4.32334,2313.1,2312.7,1.28549405]
[1726486525989,4.32344,2313.0,2312.7,1.28549405]
[1726486526345,4.32334,2313.1,2312.7,1.28549405]
[1726486526674,4.32334,2313.1,2312.7,5.60942405]
[1726486526869,0.45273914,2313.2,2312.8,6.69222879]
[1726486527049,0.45273914,2313.2,2312.8,6.60576]
[1726486527556,4.77582914,2313.2,2312.8,2.282]
[1726486530278,4.32349,2313.0,2312.6,2.4779]
[1726486530461,4.3237,2312.9,2312.4,6.80237]
[1726486530664,4.32371,2312.9,2312.5,2.27336706]
[1726486531451,4.32441,2312.5,2312.2,2.386]
[1726486531655,4.3246,2312.4,2312.2,2.386]
[1726486531903,4.32441,2312.5,2312.2,0.9786]
[1726486532185,4.32406,2312.7,2312.3,0.11363076]
[1726486532392,4.32435,2312.5,2312.3,0.11363076]
[1726486532544,4.32435,2312.5,2312.1,0.08648436]
[1726486532749,4.32435,2312.5,2312.4,0.11182341]
[1726486533099,4.32435,2312.5,2312.4,0.11205679]
[1726486533393,4.32435,2312.5,2312.0,6.79772964]
[1726486533561,4.32435,2312.5,2312.4,0.11205679]
[1726486533755,4.32435,2312.5,2312.1,1.10044602]
[1726486533963,4.32413,2312.6,2312.4,0.11222932]
[1726486534162,4.32357,2312.9,2312.3,10.98052055]
[1726486534482,4.32357,2312.9,2312.4,4.41095682]
[1726486534655,4.32357,2312.9,2312.5,0.11222932]
[1726486535406,8.64726,2312.9,2312.5,0.11222932]
[1726486536080,4.32378,2312.8,2312.5,0.11222932]
[1726486536273,4.32378,2312.8,2312.3,6.86026666]
[1726486536479,4.32378,2312.8,2312.4,0.11214812]
[1726486539274,4.32357,2312.9,2312.4,4.43664812]
[1726486539275,4.32359,2312.9,2312.4,4.43664812]
[1726486539574,8.6473,2312.9,2312.4,6.12774417]
[1726486539766,4.32378,2312.8,2312.4,1.80324417]
[1726486540275,4.32378,2312.8,2312.4,0.19862478]
[1726486540677,4.32378,2312.8,2312.4,4.52311478]
[1726486540879,4.3234,2313.0,2312.4,4.52311478]
[1726486541090,4.32324,2313.1,2312.5,10.94651055]
[1726486541295,4.32324,2313.1,2312.6,4.52255628]
[1726486541495,4.32324,2313.1,2312.6,0.11205679]
[1726486541496,8.64659,2313.1,2312.6,0.11205679]
[1726486541667,8.64659,2313.1,2312.6,6.10613626]
[1726486541668,8.64655,2313.1,2312.6,6.10613626]
[1726486541874,8.64655,2313.1,2312.6,1.78203626]
[1726486542092,4.32342,2313.0,2312.6,1.69556667]
[1726486543297,4.32342,2313.0,2312.6,0.11205679]
[1726486544070,4.32362,2312.9,2312.6,0.11205679]
[1726486544272,4.32342,2313.0,2312.6,0.11205679]
[1726486544516,8.64692,2313.0,2312.6,0.11205679]
[1726486545019,4.32342,2313.0,2312.6,0.11205679]
[1726486545308,4.32342,2313.0,2312.6,0.85111858]
[1726486545472,8.64692,2313.0,2312.6,0.85111858]
[1726486545879,8.6469,2313.0,2312.6,0.85111858]
[1726486546479,3.45273914,2313.2,2312.6,5.17520858]
[1726486546480,4.32322,2313.1,2312.6,5.17520858]
[1726486546678,7.77590914,2313.2,2312.6,5.17520858]
[1726486546679,0.45273914,2313.2,2312.8,4.32366]
[1726486546897,0.45273914,2313.2,2312.9,6.83779056]
[1726486547221,0.45273914,2313.2,2313.0,0.69242513]
[1726486547517,0.45273914,2313.2,2313.1,0.11231041]
[1726486548587,4.77574914,2313.2,2313.1,0.11231041]
[1726486548925,0.45273914,2313.2,2313.1,0.11231041]
[1726486549126,4.77574914,2313.2,2313.1,0.11231041]
[1726486549331,4.77574914,2313.2,2312.9,2.4019]
[1726486549630,4.77574914,2313.2,2313.1,0.11205678]
[1726486549798,4.77574914,2313.2,2313.0,0.1121075]
[1726486550123,4.77574914,2313.2,2313.1,0.1121075]
[1726486550624,4.77574914,2313.2,2312.9,2.4019]
[1726486550825,4.77574914,2313.2,2313.1,0.11208721]
[1726486551031,4.77574914,2313.2,2312.9,2.4019]
[1726486551192,4.77574914,2313.2,2313.1,0.11208721]
[1726486551515,4.77574914,2313.2,2313.1,0.11209736]
[1726486551714,4.77574914,2313.2,2312.9,2.4019]
[1726486551889,4.77574914,2313.2,2313.1,0.11209736]
[1726486552093,4.77574914,2313.2,2312.9,2.4019]
[1726486552432,4.77574914,2313.2,2313.0,0.11209736]
[1726486554596,8.6464,2313.1,2313.0,0.11209736]
[1726486555109,4.32341,2313.0,2312.7,2.2936]
[1726486555305,4.3232,2313.1,2312.7,2.2936]
[1726486555511,4.32357,2312.9,2312.7,2.2936]
[1726486556740,4.32357,2312.9,2312.5,2.2936]
[1726486556910,4.32384,2312.8,2312.5,4.34234922]
[1726486557250,4.32384,2312.8,2312.6,1.34604156]
[1726486557423,4.32384,2312.8,2312.5,4.34234922]
[1726486557620,4.32384,2312.8,2312.6,1.34603275]
[1726486557844,4.32359,2312.9,2312.5,4.34234922]
[1726486558135,4.32359,2312.9,2312.6,1.92711053]
[1726486558346,8.64703,2313.0,2312.6,0.58105923]
[1726486558530,8.64703,2313.0,2312.7,1.345799]
[1726486558737,8.64703,2313.0,2312.5,13.77168806]
[1726486558738,4.32365,2312.9,2312.5,13.77168806]
[1726486558916,4.32365,2312.9,2312.6,3.36490448]
[1726486559114,4.32365,2312.9,2312.5,9.56495751]
[1726486559631,4.32365,2312.9,2312.6,1.34568141]
[1726486559803,4.32365,2312.9,2312.5,8.66656922]
[1726486560003,4.32365,2312.9,2312.6,1.34571502]
[1726486560210,4.32365,2312.9,2312.6,1.09106725]
[1726486560618,4.32377,2312.8,2312.5,4.34234922]
[1726486560916,4.32396,2312.7,2312.3,3.27558829]
[1726486561116,4.32421,2312.6,2312.4,3.36601858]
[1726486561341,4.32421,2312.6,2312.3,3.27558829]
[1726486561647,4.32432,2312.5,2312.4,3.36611056]
[1726486561865,8.64846,2312.6,2312.2,0.89838829]
[1726486562150,4.32421,2312.6,2312.3,3.36637655]
[1726486562349,4.32421,2312.6,2312.2,1.64857266]
[1726486562554,8.6485,2312.6,2312.3,3.3661685]
[1726486562716,4.32421,2312.6,2312.4,1.3464674]
[1726486562915,8.64776,2312.8,2312.3,4.32467]
[1726486563132,4.32386,2312.8,2312.4,3.36605174]
[1726486563334,4.32386,2312.8,2312.4,8.36169843]
[1726486563638,0.45268175,2313.0,2312.5,15.2331263]
[1726486563837,4.32281,2313.4,2312.9,4.32357]
[1726486564149,4.77514697,2313.5,2313.0,4.32328]
[1726486564479,8.6454,2313.4,2313.0,1.62766996]
[1726486564630,4.32266,2313.4,2313.0,1.62766996]
[1726486565261,0.45269697,2313.5,2312.8,2.4382]
[1726486565262,4.32325,2313.1,2312.8,2.4382]
[1726486565442,0.45269697,2313.5,2312.8,2.4382]
[1726486565443,8.64636,2313.2,2312.8,2.4382]
[1726486565651,4.32292,2313.3,2312.8,7.84995106]
[1726486565979,4.27415546,2313.3,2312.8,7.84985106]
[1726486566535,4.32305,2313.2,2312.8,2.4382]
[1726486566737,8.64621,2313.2,2312.8,2.4382]
[1726486566970,8.64624,2313.2,2312.8,2.4382]
[1726486567478,4.32305,2313.2,2312.8,2.4382]
[1726486567845,4.32305,2313.2,2312.6,7.63927829]
[1726486568041,4.32305,2313.2,2312.7,1.34599]
[1726486568239,4.32305,2313.2,2312.6,9.87196729]
[1726486568485,4.32305,2313.2,2312.7,3.36504023]
[1726486568781,4.32305,2313.2,2312.6,9.87196729]
[1726486568935,4.32339,2313.0,2312.7,3.363916]
[1726486569137,4.32339,2313.0,2312.7,2.06358833]
[1726486569352,4.32323,2313.1,2312.8,0.11233074]
[1726486569773,4.32323,2313.1,2312.7,2.06358833]
[1726486570078,4.32305,2313.2,2312.7,6.38751833]
[1726486570286,3.0,2313.3,2313.0,2.2639]
[1726486570440,3.0,2313.3,2313.0,3.17833105]
[1726486570441,7.32292,2313.3,2313.0,3.17833105]
[1726486570652,4.32304,2313.2,2313.1,0.11237132]
[1726486570854,4.32304,2313.2,2312.8,3.27639975]
[1726486570855,7.32292,2313.3,2312.8,7.60012975]
[1726486571169,7.32292,2313.3,2312.9,1.51116357]
[1726486571793,7.32275,2313.4,2313.0,2.4727]
[1726486572163,4.32284,2313.3,2313.0,2.4727]
[1726486572688,4.32284,2313.3,2313.1,0.11240176]
[1726486573099,7.32272,2313.4,2313.1,0.11240176]
[1726486574852,4.32284,2313.3,2313.1,0.11240176]
[1726486580603,8.64575,2313.3,2313.1,0.11240176]
[1726486580800,4.32301,2313.2,2313.1,0.11240176]
[1726486581008,8.64602,2313.2,2313.1,0.11240176]
[1726486581169,4.32368,2312.9,2312.6,0.89838829]
[1726486581372,4.32368,2312.9,2312.7,3.36547963]
[1726486581569,4.32368,2312.9,2312.8,1.34619185]
[1726486581774,4.32368,2312.9,2312.6,0.89838829]
[1726486582111,0.45260049,2313.2,2312.8,2.4674]
[1726486582282,3.45260049,2313.2,2312.9,1.34602431]
[1726486582469,7.77562049,2313.2,2312.8,6.79115]
[1726486582669,7.77562049,2313.2,2312.9,1.34602145]
[1726486582870,7.77562049,2313.2,2312.8,8.6570032]
[1726486583080,7.77562049,2313.2,2312.9,1.34600948]
[1726486583288,7.77562049,2313.2,2312.8,7.75861491]
[1726486583510,4.3232,2313.1,2312.9,1.34606921]
[1726486583707,4.3232,2313.1,2312.8,2.4674]
[1726486583912,4.3232,2313.1,2312.9,1.34610462]
[1726486584112,7.77564049,2313.2,2312.8,2.4674]
[1726486584274,7.77564049,2313.2,2312.9,0.11174225]
[1726486584475,12.09882049,2313.2,2312.9,0.11174225]
[1726486586316,4.32324,2313.1,2312.9,0.11174225]
[1726486586700,4.77563049,2313.2,2312.9,0.11174225]
[1726486586893,0.45260049,2313.2,2312.9,0.8918753]
[1726486587221,0.45260049,2313.2,2313.0,9.94399161]
[1726486587429,0.45260049,2313.2,2313.0,6.57677]
[1726486587607,0.45260049,2313.2,2313.1,2.72802054]
[1726486587786,0.45260049,2313.2,2313.1,1.3811061]
[1726486588608,0.45260049,2313.2,2313.1,2.72791308]
[1726486588783,0.45260049,2313.2,2313.1,4.74805345]
[1726486589688,0.45260049,2313.2,2313.1,2.72791308]
[1726486589895,0.45260049,2313.2,2313.1,2.72780868]
[1726486591527,4.32274,2313.4,2313.1,2.72780868]
[1726486591837,4.32274,2313.4,2313.1,1.3811061]
[1726486593995,4.7751104,2313.5,2313.1,5.7042861]
[1726486594194,4.7751104,2313.5,2313.2,0.79578861]
[1726486594494,4.7751104,2313.5,2313.3,0.10828093]
[1726486595018,0.4525804,2313.5,2313.3,0.10828093]
[1726486595220,0.4525804,2313.5,2313.1,5.59216936]
[1726486595399,0.4525804,2313.5,2313.4,0.10812875]
[1726486595607,4.7750804,2313.5,2313.2,0.78457394]
[1726486595820,4.7750804,2313.5,2313.4,0.10812875]
[1726486596358,4.7750804,2313.5,2313.1,1.26904936]
[1726486596654,4.7750804,2313.5,2313.4,0.10812875]
[1726486596851,4.7750804,2313.5,2313.0,7.47513829]
[1726486597159,4.7750804,2313.5,2313.1,4.73831143]
[1726486597312,4.7750804,2313.5,2313.1,1.48085853]
[1726486600307,4.7750804,2313.5,2313.2,2.4466]
[1726486600504,4.7750804,2313.5,2313.3,0.10773312]
[1726486600719,4.7750804,2313.5,2313.0,6.76987]
[1726486600950,4.7750804,2313.5,2313.1,1.45361687]
[1726486601259,4.32273,2313.4,2313.1,0.10771283]
[1726486601416,4.7750804,2313.5,2313.1,0.10771283]
[1726486601417,4.32283,2313.3,2313.1,0.10771283]
[1726486602451,4.32265,2313.4,2313.1,0.10771283]
[1726486603119,4.32284,2313.3,2313.1,0.10771283]
[1726486603316,4.32284,2313.3,2312.8,11.4882107]
[1726486603514,4.32284,2313.3,2312.9,7.79688079]
[1726486603729,4.32284,2313.3,2312.9,4.43123297]
[1726486604326,4.32265,2313.4,2313.0,1.34635829]
[1726486604528,4.32265,2313.4,2312.9,4.32351]
[1726486604718,4.32265,2313.4,2313.0,1.4540752]
[1726486604922,4.32265,2313.4,2313.0,0.10772297]
[1726486605812,4.32265,2313.4,2313.0,2.60352297]
[1726486606218,4.32265,2313.4,2313.1,1.34638937]
[1726486606418,4.32265,2313.4,2313.0,2.60352297]
[1726486606621,4.32265,2313.4,2313.2,0.10779398]
[1726486606925,4.32265,2313.4,2313.3,0.10779398]
[1726486607269,4.32265,2313.4,2313.0,2.4958]
[1726486607414,4.32265,2313.4,2313.3,0.10779398]
[1726486607613,4.32265,2313.4,2313.0,2.4958]
[1726486607910,4.32284,2313.3,2313.1,1.34672082]
[1726486608114,4.32284,2313.3,2313.2,0.10779398]
[1726486608323,4.32284,2313.3,2312.9,0.89838829]
[1726486608660,4.32284,2313.3,2313.0,3.47637789]
[1726486608850,4.32284,2313.3,2313.0,0.10779399]
[1726486609028,4.32265,2313.4,2313.1,1.34736497]
[1726486609233,4.32265,2313.4,2313.0,4.43117399]
[1726486609234,4.32265,2313.4,2313.0,5.32956228]
[1726486609429,4.7750704,2313.5,2313.1,3.368322]
[1726486609627,4.7750704,2313.5,2313.1,0.10779399]
[1726486609854,4.32265,2313.4,2313.1,0.10779399]
[1726486613652,4.32265,2313.4,2313.2,1.34728778]
[1726486613964,4.32265,2313.4,2313.3,0.10783457]
[1726486614265,4.7750504,2313.5,2313.3,0.10783457]
[1726486614572,7.7750504,2313.5,2313.4,0.10783457]
[1726486614873,3.4525804,2313.5,2313.4,0.10783457]
[1726486615174,3.4525804,2313.5,2313.4,0.10779399]
[1726486615372,0.4525804,2313.5,2313.4,0.10779399]
[1726486615572,0.4525804,2313.5,2313.1,7.63969829]
[1726486615736,0.4525804,2313.5,2313.4,0.10779399]
[1726486615945,0.4525804,2313.5,2313.1,9.49455738]
[1726486616259,0.4525804,2313.5,2313.2,4.39900413]
[1726486616567,0.4525804,2313.5,2313.3,1.35712874]
[1726486616773,0.4525804,2313.5,2313.3,4.32282]
[1726486616983,0.0383174,2313.7,2313.5,4.32237]
[1726486617273,0.0383174,2313.7,2313.6,14.22397898]
[1726486617430,0.0383174,2313.7,2313.6,17.26403271]
[1726486618332,0.0383174,2313.7,2313.6,12.04338442]
[1726486618660,0.0383174,2313.7,2313.6,13.97980546]
[1726486618835,0.0383174,2313.7,2313.6,12.03732305]
[1726486619036,0.0383174,2313.7,2313.6,1.46280047]
[1726486619270,0.0383174,2313.7,2313.6,0.10775342]
[1726486619665,4.3605174,2313.7,2313.2,7.64367829]
[1726486619995,4.3605174,2313.7,2313.3,7.75616765]
[1726486620143,0.0383174,2313.7,2313.4,3.38796455]
[1726486620343,0.0383174,2313.7,2313.5,3.4045155]
[1726486620548,0.0383174,2313.7,2313.5,2.04939406]
[1726486621252,0.0383174,2313.7,2313.5,0.10691165]
[1726486621493,4.3604274,2313.7,2313.5,0.10691165]
[1726486621676,4.32254,2313.5,2313.1,0.89838829]
[1726486621989,4.32265,2313.4,2313.2,1.35545907]
[1726486622287,4.32265,2313.4,2313.0,14.94525829]
[1726486622288,4.32284,2313.3,2313.0,8.29838829]
[1726486622449,4.32284,2313.3,2313.1,3.3889691]
[1726486622651,4.32254,2313.5,2313.1,4.32319]
[1726486622848,3.0,2313.6,2313.2,10.75656902]
[1726486623089,7.32229,2313.6,2313.3,1.35295436]
[1726486623306,7.32229,2313.6,2313.2,9.40104848]
[1726486623492,7.32229,2313.6,2313.2,5.07808848]
[1726486623950,7.32229,2313.6,2313.2,4.36168241]
[1726486624381,4.3604974,2313.7,2313.4,1.94248241]
[1726486624382,0.0383174,2313.7,2313.4,1.94248241]
[1726486624566,0.0383174,2313.7,2313.5,2.4574]
[1726486625011,0.0383174,2313.7,2313.4,4.32255]
[1726486625149,0.0383174,2313.7,2313.5,1.87434617]
[1726486625355,0.0383174,2313.7,2313.5,0.52209383]
[1726486626097,0.0383174,2313.7,2313.6,8.69264241]
[1726486626403,0.0383174,2313.7,2313.6,2.4279]
[1726486627814,0.0383174,2313.7,2313.5,9.16674383]
[1726486628015,0.0383174,2313.7,2313.6,1.20076145]
[1726486629021,0.0383174,2313.7,2313.6,6.87476655]
[1726486629350,0.0383174,2313.7,2313.6,8.04467366]
[1726486629651,0.0383174,2313.7,2313.6,9.98715607]
[1726486630333,0.0383174,2313.7,2313.6,3.72241366]
[1726486630735,0.0383174,2313.7,2313.6,1.30771366]
[1726486632340,0.0383174,2313.7,2313.6,7.57245607]
[1726486632513,0.0383174,2313.7,2313.6,10.2213156]
[1726486632717,0.0383174,2313.7,2313.6,14.5435756]
[1726486633025,0.0383174,2313.7,2313.6,16.57062584]
[1726486633530,0.0383174,2313.7,2313.6,14.5435756]
[1726486633726,0.0383174,2313.7,2313.6,16.13998137]
[1726486633914,0.0383174,2313.7,2313.6,18.16673585]
[1726486634311,0.0383174,2313.7,2313.6,16.13998137]
[1726486637424,0.0383174,2313.7,2313.6,16.13972697]
[1726486639234,0.0383174,2313.7,2313.6,11.81746697]
[1726486639435,0.0383174,2313.7,2313.6,10.46630039]
[1726486642438,0.0383174,2313.7,2313.6,14.78856039]
[1726486642845,0.0383174,2313.7,2313.6,18.16533094]
[1726486643561,0.0383174,2313.7,2313.6,16.13926861]
[1726486644720,0.45253834,2314.3,2313.6,7.9203442]
[1726486644917,0.0383174,2314.4,2314.3,11.07022]
[1726486645118,0.0383174,2314.4,2314.3,13.11925543]
[1726486645360,0.0383174,2314.4,2314.3,14.43118097]
[1726486645821,0.0383174,2314.4,2314.3,10.11022097]
[1726486648132,0.0383174,2314.4,2314.3,5.78926097]
[1726486648336,0.0383174,2314.4,2314.3,1.41847856]